bitfinex/quotes_SOLUSD_20230120
["timestamp","ask_amount","ask_price","bid_price","bid_amount"]
[1674226033326,20.0,21.386,21.373,17.0]
[1674226033538,35.08,21.385,21.373,17.0]
[1674226033867,20.0,21.384,21.373,17.0]
[1674226034398,35.08,21.383,21.373,17.0]
[1674226034598,20.0,21.382,21.373,17.0]
[1674226034808,20.0,21.382,21.374,10.0]
[1674226035008,35.07,21.389,21.375,17.0]
[1674226036062,35.06,21.395,21.376,185.79]
[1674226036274,20.0,21.394,21.377,17.0]
[1674226036608,35.07,21.393,21.377,17.0]
[1674226036815,29.39,21.39,21.377,17.0]
[1674226037035,35.07,21.389,21.377,17.0]
[1674226038397,35.07,21.389,21.376,10.0]
[1674226038606,62.69856938,21.389,21.374,10.0]
[1674226038818,29.41,21.38,21.369,10.0]
[1674226039028,35.09,21.379,21.369,10.0]
[1674226039857,35.09,21.379,21.365,10.0]
[1674226040497,27.62856938,21.378,21.365,10.0]
[1674226040711,27.62856938,21.378,21.362,10.0]
[1674226040712,55.09,21.377,21.362,10.0]
[1674226041050,29.59,21.37,21.353,10.0]
[1674226041231,55.11,21.369,21.353,10.0]
[1674226042194,55.11,21.369,21.358,17.0]
[1674226042405,55.11,21.369,21.353,10.0]
[1674226042591,55.11,21.369,21.354,35.13]
[1674226042801,35.1,21.375,21.354,175.83]
[1674226043028,27.62856938,21.377,21.359,10.0]
[1674226043226,35.09,21.376,21.359,10.0]
[1674226043646,47.62856938,21.375,21.359,10.0]
[1674226043863,29.59,21.37,21.359,10.0]
[1674226044084,55.11,21.369,21.359,10.0]
[1674226045640,55.11,21.369,21.356,10.0]
[1674226045980,55.11,21.369,21.352,150.7]
[1674226045981,10.0,21.368,21.352,10.0]
[1674226046158,35.11,21.367,21.352,10.0]
[1674226046371,62.73856938,21.367,21.352,10.0]
[1674226046586,35.11,21.367,21.352,10.0]
[1674226046798,35.11,21.368,21.352,10.0]
[1674226047447,20.0,21.369,21.353,35.13]
[1674226047665,35.11,21.368,21.353,35.13]
[1674226047878,35.11,21.369,21.352,10.0]
[1674226048194,30.0,21.368,21.35,10.0]
[1674226048398,52.11,21.367,21.347,10.0]
[1674226048709,27.91,21.36,21.347,10.0]
[1674226048898,55.12,21.359,21.347,10.0]
[1674226050377,55.12,21.359,21.346,10.0]
[1674226050598,17.0,21.358,21.341,10.0]
[1674226050812,55.13,21.357,21.341,10.0]
[1674226051544,27.74,21.35,21.338,10.0]
[1674226051752,55.14,21.349,21.333,10.0]
[1674226052795,20.0,21.349,21.335,10.0]
[1674226053003,20.0,21.358,21.336,52.16]
[1674226053204,35.13,21.357,21.336,52.16]
[1674226053425,20.0,21.356,21.337,10.0]
[1674226053730,35.13,21.355,21.339,10.0]
[1674226053947,20.0,21.354,21.34,17.0]
[1674226054384,20.0,21.354,21.341,10.0]
[1674226054584,35.12,21.359,21.342,17.0]
[1674226054802,35.11,21.366,21.344,10.0]
[1674226054992,35.11,21.369,21.345,192.85]
[1674226055202,27.62856938,21.366,21.346,20.0]
[1674226055414,35.11,21.365,21.347,52.14]
[1674226055627,35.11,21.365,21.348,17.0]
[1674226055855,35.11,21.365,21.349,10.0]
[1674226056177,20.0,21.364,21.35,17.0]
[1674226056677,20.0,21.368,21.351,10.0]
[1674226056883,35.11,21.367,21.352,17.0]
[1674226057096,20.0,21.366,21.352,17.0]
[1674226057313,35.11,21.365,21.352,17.0]
[1674226057522,20.0,21.364,21.352,17.0]
[1674226057744,35.12,21.363,21.352,17.0]
[1674226057967,20.0,21.362,21.352,17.0]
[1674226058188,35.12,21.361,21.352,17.0]
[1674226058362,31.78856938,21.377,21.352,17.0]
[1674226058576,31.78856938,21.377,21.353,45.13]
[1674226058577,20.0,21.376,21.353,45.13]
[1674226058801,20.0,21.376,21.354,17.0]
[1674226058995,35.1,21.375,21.354,17.0]
[1674226059207,20.0,21.374,21.354,17.0]
[1674226059536,35.1,21.373,21.355,10.0]
[1674226059857,20.0,21.372,21.356,17.0]
[1674226060066,35.1,21.371,21.356,17.0]
[1674226060288,20.0,21.37,21.356,17.0]
[1674226060467,35.11,21.369,21.356,17.0]
[1674226061313,35.11,21.369,21.355,10.0]
[1674226061729,66.89856938,21.369,21.355,10.0]
[1674226062276,35.11,21.369,21.355,10.0]
[1674226062793,35.11,21.369,21.355,150.7]
[1674226062992,35.11,21.369,21.356,17.0]
[1674226063207,35.11,21.369,21.357,10.0]
[1674226063419,35.11,21.369,21.358,17.0]
[1674226066137,35.11,21.369,21.355,10.0]
[1674226066605,31.78856938,21.368,21.355,10.0]
[1674226066899,35.11,21.367,21.355,10.0]
[1674226067295,66.89856938,21.367,21.347,35.14]
[1674226067636,29.68,21.36,21.345,255.3182]
[1674226067947,20.0,21.359,21.345,255.3182]
[1674226068146,20.0,21.359,21.345,290.4682]
[1674226068357,20.0,21.364,21.345,255.3182]
[1674226068560,29.83,21.36,21.345,255.3182]
[1674226068774,55.12,21.359,21.345,255.3182]
[1674226068979,20.0,21.359,21.345,255.3182]
[1674226069192,20.0,21.359,21.35,17.0]
[1674226069400,31.78856938,21.367,21.35,17.0]
[1674226069743,55.11,21.366,21.345,114.6182]
[1674226070051,55.11,21.366,21.345,255.3182]
[1674226070274,55.11,21.366,21.345,290.4682]
[1674226070458,55.11,21.366,21.348,150.7]
[1674226070667,35.11,21.366,21.348,150.7]
[1674226070868,35.11,21.369,21.35,175.84]
[1674226071083,35.11,21.369,21.351,27.0]
[1674226071519,35.11,21.369,21.352,10.0]
[1674226071835,35.11,21.369,21.353,17.0]
[1674226072551,35.11,21.369,21.354,10.0]
[1674226072773,35.11,21.369,21.355,17.0]
[1674226073308,35.09,21.378,21.356,140.7]
[1674226073515,20.0,21.377,21.357,17.0]
[1674226073711,35.09,21.376,21.358,150.7]
[1674226074045,20.0,21.375,21.359,17.0]
[1674226074238,35.1,21.374,21.36,10.0]
[1674226074447,35.1,21.374,21.361,17.0]
[1674226074656,35.1,21.374,21.362,10.0]
[1674226074872,35.09,21.379,21.363,17.0]
[1674226075076,35.09,21.379,21.363,192.82]
[1674226075287,31.78856938,21.383,21.363,192.82]
[1674226075288,35.08,21.382,21.363,192.82]
[1674226075610,35.08,21.382,21.364,10.0]
[1674226075823,20.0,21.381,21.366,140.7]
[1674226076029,55.08,21.387,21.367,202.81]
[1674226076236,55.08,21.387,21.367,167.7]
[1674226076450,86.86856938,21.387,21.367,167.7]
[1674226076971,86.86856938,21.387,21.367,62.11]
[1674226077926,127.35986838,21.387,21.367,62.11]
[1674226078129,127.35986838,21.387,21.367,27.0]
[1674226078349,17.0,21.386,21.367,27.0]
[1674226078558,29.93,21.38,21.367,27.0]
[1674226078767,20.0,21.379,21.367,27.0]
[1674226080536,55.09,21.379,21.367,27.0]
[1674226081271,20.0,21.379,21.367,27.0]
[1674226081488,20.0,21.379,21.369,10.0]
[1674226081697,20.0,21.383,21.37,17.0]
[1674226081911,35.08,21.382,21.37,17.0]
[1674226082239,20.0,21.381,21.37,17.0]
[1674226082430,20.0,21.381,21.371,10.0]
[1674226082640,20.0,21.382,21.372,17.0]
[1674226083709,20.0,21.382,21.371,10.0]
[1674226083710,35.09,21.381,21.371,10.0]
[1674226083923,20.0,21.38,21.371,10.0]
[1674226084537,35.09,21.379,21.371,10.0]
[1674226084970,35.09,21.379,21.368,10.0]
[1674226085178,66.83962138,21.379,21.367,10.0]
[1674226085507,66.83962138,21.379,21.365,10.0]
[1674226085823,66.83962138,21.379,21.362,10.0]
[1674226085824,29.83,21.37,21.362,10.0]
[1674226086045,55.11,21.369,21.362,10.0]
[1674226086215,20.0,21.369,21.356,10.0]
[1674226086433,35.11,21.368,21.356,10.0]
[1674226087187,20.0,21.367,21.356,10.0]
[1674226087382,35.11,21.366,21.356,10.0]
[1674226087596,20.0,21.365,21.356,10.0]
[1674226087803,35.11,21.364,21.356,10.0]
[1674226088012,20.0,21.363,21.356,10.0]
[1674226088220,20.0,21.363,21.347,45.14]
[1674226088447,35.12,21.362,21.347,10.0]
[1674226088643,20.0,21.361,21.347,10.0]
[1674226088856,35.12,21.36,21.347,10.0]
[1674226089072,20.0,21.359,21.347,10.0]
[1674226089485,20.0,21.359,21.352,10.0]
[1674226090107,20.0,21.368,21.353,17.0]
[1674226090317,35.11,21.367,21.353,17.0]
[1674226090537,20.0,21.366,21.353,17.0]
[1674226090748,35.11,21.365,21.353,17.0]
[1674226090955,20.0,21.364,21.353,17.0]
[1674226091189,35.12,21.363,21.353,17.0]
[1674226091371,20.0,21.362,21.353,17.0]
[1674226091580,35.12,21.361,21.353,17.0]
[1674226091802,20.0,21.36,21.353,17.0]
[1674226092230,20.0,21.368,21.353,17.0]
[1674226092543,29.68,21.37,21.353,17.0]
[1674226092544,35.11,21.367,21.354,10.0]
[1674226092874,35.11,21.369,21.355,17.0]
[1674226093083,31.74962138,21.372,21.355,17.0]
[1674226093084,35.1,21.371,21.356,185.83]
[1674226093273,35.1,21.371,21.357,17.0]
[1674226093478,35.09,21.378,21.358,10.0]
[1674226093696,35.09,21.378,21.36,140.7]
[1674226093898,35.09,21.379,21.362,140.7]
[1674226094122,35.09,21.379,21.363,52.12]
[1674226094321,66.83962138,21.379,21.363,17.0]
[1674226094528,35.09,21.379,21.362,140.7]
[1674226094856,35.09,21.379,21.364,140.7]
[1674226095072,35.09,21.379,21.365,27.0]
[1674226095472,31.74962138,21.382,21.365,27.0]
[1674226095687,20.0,21.381,21.367,10.0]
[1674226095907,20.0,21.381,21.369,140.7]
[1674226096106,20.0,21.381,21.37,17.0]
[1674226096316,66.81962138,21.389,21.371,10.0]
[1674226096521,66.81962138,21.389,21.372,52.1]
[1674226096955,66.81962138,21.389,21.372,17.0]
[1674226097169,66.81962138,21.389,21.373,125.5583]
[1674226097361,66.81962138,21.389,21.375,10.0]
[1674226097572,66.81962138,21.389,21.376,17.0]
[1674226098194,31.74962138,21.389,21.376,17.0]
[1674226098405,35.06,21.395,21.377,10.0]
[1674226098740,20.0,21.394,21.378,17.0]
[1674226098937,35.06,21.396,21.38,140.7]
[1674226099152,35.06,21.399,21.382,140.7]
[1674226099380,35.06,21.399,21.383,10.0]
[1674226099381,55.06,21.399,21.383,10.0]
[1674226099686,86.80962138,21.399,21.384,17.0]
[1674226099901,86.80962138,21.399,21.385,10.0]
[1674226100230,86.80962138,21.399,21.386,17.0]
[1674226100650,20.0,21.399,21.386,52.08]
[1674226100856,31.74962138,21.399,21.386,52.08]
[1674226101064,31.74962138,21.399,21.386,17.0]
[1674226101494,35.06,21.399,21.386,17.0]
[1674226101680,35.05,21.404,21.386,17.0]
[1674226101891,51.74962138,21.403,21.386,52.08]
[1674226102111,35.05,21.402,21.386,52.08]
[1674226102422,20.0,21.401,21.387,10.0]
[1674226102636,35.06,21.4,21.388,17.0]
[1674226103062,20.0,21.399,21.388,17.0]
[1674226103683,31.74962138,21.402,21.388,17.0]
[1674226103889,55.05,21.401,21.388,17.0]
[1674226104229,55.05,21.401,21.389,10.0]
[1674226104447,55.05,21.401,21.39,17.0]
[1674226104629,20.0,21.401,21.391,10.0]
[1674226104838,20.0,21.408,21.392,17.0]
[1674226105067,35.04,21.407,21.392,17.0]
[1674226105262,20.0,21.406,21.392,17.0]
[1674226105465,35.05,21.405,21.392,17.0]
[1674226105789,20.0,21.404,21.392,17.0]
[1674226106003,35.05,21.403,21.392,17.0]
[1674226106216,20.0,21.402,21.392,17.0]
[1674226106850,55.05,21.403,21.392,17.0]
[1674226107354,20.0,21.403,21.392,17.0]
[1674226107574,20.0,21.408,21.392,17.0]
[1674226107787,35.04,21.407,21.392,17.0]
[1674226108006,20.0,21.406,21.391,10.0]
[1674226108225,35.05,21.405,21.391,10.0]
[1674226108408,20.0,21.404,21.391,10.0]
[1674226108746,66.79962138,21.405,21.391,10.0]
[1674226108954,31.74962138,21.405,21.392,35.07]
[1674226109147,29.68,21.41,21.394,10.0]
[1674226109358,29.68,21.41,21.395,52.06]
[1674226109580,64.72,21.41,21.395,52.06]
[1674226109883,31.74962138,21.411,21.396,10.0]
[1674226110089,35.03,21.418,21.397,17.0]
[1674226110296,63.60309738,21.418,21.397,17.0]
[1674226110731,20.0,21.417,21.397,17.0]
[1674226110937,35.03,21.416,21.397,17.0]
[1674226111140,20.0,21.415,21.397,52.06]
[1674226111355,35.03,21.414,21.398,10.0]
[1674226111581,35.03,21.414,21.399,17.0]
[1674226111799,35.03,21.417,21.399,17.0]
[1674226112022,35.02,21.419,21.399,17.0]
[1674226112203,35.02,21.419,21.4,10.0]
[1674226112418,35.02,21.419,21.401,17.0]
[1674226113047,20.0,21.418,21.401,17.0]
[1674226113257,35.03,21.417,21.401,17.0]
[1674226113466,20.0,21.416,21.401,17.0]
[1674226113678,35.03,21.415,21.401,17.0]
[1674226113893,20.0,21.414,21.401,17.0]
[1674226114127,35.03,21.413,21.401,17.0]
[1674226114431,20.0,21.412,21.401,17.0]
[1674226115057,20.0,21.417,21.401,17.0]
[1674226115268,20.0,21.417,21.4,10.0]
[1674226115269,28.57309738,21.412,21.4,10.0]
[1674226115457,35.04,21.411,21.398,10.0]
[1674226115668,49.93,21.41,21.395,108.6053]
[1674226115890,35.04,21.409,21.395,108.6053]
[1674226116104,63.61309738,21.409,21.395,108.6053]
[1674226116312,28.57309738,21.408,21.395,108.6053]
[1674226116519,35.04,21.407,21.395,108.6053]
[1674226117066,35.04,21.409,21.396,10.0]
[1674226117583,75.531299,21.409,21.391,10.0]
[1674226117906,29.83,21.4,21.384,117.1258]
[1674226118104,55.06,21.399,21.384,117.1258]
[1674226118312,55.06,21.399,21.384,152.2058]
[1674226119050,55.06,21.399,21.388,261.6842]
[1674226119248,20.0,21.399,21.388,261.6842]
[1674226119459,20.0,21.407,21.388,261.6842]
[1674226119665,35.05,21.406,21.388,261.6842]
[1674226119882,63.60309738,21.413,21.391,140.7]
[1674226120089,20.0,21.412,21.393,10.0]
[1674226120312,35.04,21.411,21.394,35.07]
[1674226120500,20.0,21.41,21.395,17.0]
[1674226120720,20.0,21.41,21.396,35.06]
[1674226121034,20.0,21.41,21.398,10.0]
[1674226121237,20.0,21.411,21.399,17.0]
[1674226122112,20.0,21.417,21.399,17.0]
[1674226122436,35.03,21.416,21.399,17.0]
[1674226122749,20.0,21.415,21.399,17.0]
[1674226123065,35.03,21.414,21.399,17.0]
[1674226123262,20.0,21.413,21.399,17.0]
[1674226123472,35.04,21.412,21.399,17.0]
[1674226123678,20.0,21.411,21.399,17.0]
[1674226124308,20.0,21.418,21.399,17.0]
[1674226124623,35.03,21.417,21.4,10.0]
[1674226124844,20.0,21.416,21.401,17.0]
[1674226125172,35.03,21.415,21.4,10.0]
[1674226125347,20.0,21.414,21.4,10.0]
[1674226125556,35.03,21.413,21.4,10.0]
[1674226125798,20.0,21.412,21.4,10.0]
[1674226125991,35.03,21.415,21.4,10.0]
[1674226126315,35.02,21.419,21.4,10.0]
[1674226126632,35.02,21.419,21.401,17.0]
[1674226126847,35.02,21.419,21.4,10.0]
[1674226127032,36.80972751,21.418,21.4,10.0]
[1674226127240,35.03,21.417,21.4,10.0]
[1674226128311,35.03,21.417,21.401,17.0]
[1674226128516,35.02,21.419,21.402,175.75]
[1674226128730,55.02,21.419,21.404,10.0]
[1674226128936,20.0,21.419,21.404,45.05]
[1674226129256,20.0,21.419,21.405,17.0]
[1674226129783,20.0,21.419,21.403,10.0]
[1674226129784,26.80972751,21.418,21.403,10.0]
[1674226130000,35.03,21.417,21.403,10.0]
[1674226131361,35.03,21.417,21.404,17.0]
[1674226132078,20.0,21.416,21.404,17.0]
[1674226132286,35.03,21.415,21.404,17.0]
[1674226132519,20.0,21.414,21.404,17.0]
[1674226132838,35.03,21.413,21.404,17.0]
[1674226133021,20.0,21.412,21.4,10.0]
[1674226133231,35.04,21.411,21.396,10.0]
[1674226133442,49.93,21.41,21.396,10.0]
[1674226133654,35.04,21.409,21.396,10.0]
[1674226133863,66.09639418,21.409,21.396,10.0]
[1674226134299,31.05639418,21.408,21.396,10.0]
[1674226134615,35.04,21.407,21.396,10.0]
[1674226135239,66.09639418,21.407,21.396,10.0]
[1674226135563,31.05639418,21.407,21.395,109.5856]
[1674226135880,35.05,21.406,21.395,109.5856]
[1674226136276,31.05639418,21.405,21.395,109.5856]
[1674226136492,35.05,21.404,21.395,109.5856]
[1674226136908,31.05639418,21.407,21.395,109.5856]
[1674226137123,35.05,21.406,21.395,109.5856]
[1674226137552,31.05639418,21.405,21.395,109.5856]
[1674226137760,35.05,21.404,21.395,109.5856]
[1674226138186,29.93,21.4,21.395,109.5856]
[1674226138378,35.06,21.399,21.389,10.0]
[1674226138589,66.11639418,21.399,21.389,10.0]
[1674226138823,31.05639418,21.398,21.389,10.0]
[1674226139764,31.05639418,21.398,21.388,110.9842]
[1674226140706,35.06,21.397,21.388,110.9842]
[1674226141027,66.11639418,21.397,21.388,110.9842]
[1674226141343,37.0,21.396,21.384,117.1258]
[1674226141531,29.74,21.39,21.384,117.1258]
[1674226141744,20.0,21.389,21.376,10.0]
[1674226143324,55.07,21.389,21.376,10.0]
[1674226144791,55.07,21.389,21.375,113.4029]
[1674226145462,31.05639418,21.388,21.375,113.4029]
[1674226145655,35.08,21.387,21.375,113.4029]
[1674226145845,20.0,21.389,21.376,185.79]
[1674226146054,20.0,21.399,21.376,185.79]
[1674226146264,20.0,21.399,21.376,45.09]
[1674226146487,35.06,21.398,21.378,10.0]
[1674226146706,20.0,21.399,21.379,72.09]
[1674226147112,20.0,21.399,21.38,10.0]
[1674226147329,20.0,21.399,21.381,52.09]
[1674226147728,35.06,21.398,21.381,52.09]
[1674226148257,20.0,21.399,21.382,150.7]
[1674226148468,20.0,21.404,21.383,192.78]
[1674226148689,35.05,21.403,21.384,229.6751]
[1674226148886,35.04,21.409,21.385,202.78]
[1674226149095,35.04,21.409,21.387,10.0]
[1674226149332,35.04,21.409,21.388,212.77]
[1674226149856,35.04,21.409,21.389,10.0]
[1674226150039,35.04,21.409,21.391,10.0]
[1674226150250,35.04,21.409,21.392,52.07]
[1674226150696,0.96,21.408,21.393,10.0]
[1674226150883,0.96,21.408,21.394,17.0]
[1674226151425,35.03,21.416,21.395,35.06]
[1674226151751,29.74,21.41,21.395,260.9253]
[1674226151944,29.74,21.41,21.396,17.0]
[1674226152283,20.0,21.409,21.397,35.06]
[1674226152489,20.0,21.409,21.398,17.0]
[1674226152891,20.0,21.409,21.397,17.0]
[1674226154701,20.0,21.413,21.399,10.0]
[1674226154917,29.74,21.41,21.399,10.0]
[1674226155098,20.0,21.409,21.399,10.0]
[1674226156570,29.68,21.41,21.399,10.0]
[1674226156780,20.0,21.409,21.399,10.0]
[1674226158780,20.0,21.409,21.396,35.06]
[1674226158996,62.98919484,21.408,21.39,35.07]
[1674226159222,20.96,21.407,21.39,35.07]
[1674226159424,35.05,21.406,21.388,35.07]
[1674226159742,29.74,21.4,21.387,45.08]
[1674226159933,20.0,21.399,21.387,10.0]
[1674226160140,0.96,21.398,21.387,10.0]
[1674226161194,35.05,21.404,21.387,45.08]
[1674226161414,29.93,21.41,21.387,45.08]
[1674226161736,35.04,21.409,21.387,10.0]
[1674226162051,29.93,21.4,21.387,10.0]
[1674226162240,29.93,21.4,21.39,17.0]
[1674226162450,29.93,21.4,21.387,10.0]
[1674226163093,20.0,21.399,21.387,10.0]
[1674226163305,20.0,21.399,21.388,17.0]
[1674226163500,0.96,21.398,21.388,17.0]
[1674226164997,0.96,21.398,21.387,10.0]
[1674226165197,35.06,21.397,21.379,35.09]
[1674226165515,20.0,21.396,21.379,35.09]
[1674226165712,35.06,21.395,21.379,35.09]
[1674226165926,20.0,21.394,21.379,35.09]
[1674226166666,20.0,21.395,21.379,35.09]
[1674226166870,35.07,21.394,21.379,35.09]
[1674226167078,27.94919484,21.397,21.381,35.09]
[1674226167600,27.94919484,21.397,21.383,17.0]
[1674226167941,35.06,21.396,21.383,17.0]
[1674226168127,35.06,21.396,21.384,10.0]
[1674226168337,35.06,21.396,21.385,17.0]
[1674226168548,35.06,21.396,21.384,10.0]
[1674226168765,27.94919484,21.397,21.385,17.0]
[1674226169190,35.06,21.396,21.385,17.0]
[1674226169400,35.06,21.396,21.384,10.0]
[1674226170127,35.06,21.399,21.385,52.08]
[1674226170338,35.05,21.405,21.385,171.3648]
[1674226170555,20.0,21.404,21.386,10.0]
[1674226170777,35.05,21.403,21.387,52.08]
[1674226170986,29.68,21.4,21.387,52.08]
[1674226171203,20.0,21.399,21.387,52.08]
[1674226171507,0.96,21.398,21.388,10.0]
[1674226172239,20.0,21.399,21.388,10.0]
[1674226172461,20.0,21.405,21.39,10.0]
[1674226172865,20.0,21.405,21.391,17.0]
[1674226173074,35.05,21.404,21.391,17.0]
[1674226173276,20.0,21.403,21.391,17.0]
[1674226173485,0.96,21.402,21.392,10.0]
[1674226173920,35.05,21.404,21.392,10.0]
[1674226174139,20.96,21.403,21.392,10.0]
[1674226174347,35.05,21.402,21.39,10.0]
[1674226174558,20.0,21.401,21.39,10.0]
[1674226174763,35.06,21.4,21.39,10.0]
[1674226174975,20.0,21.399,21.39,10.0]
[1674226175509,0.96,21.398,21.39,10.0]
[1674226175903,20.0,21.4,21.39,10.0]
[1674226176557,20.0,21.4,21.391,17.0]
[1674226176955,47.94919484,21.408,21.392,10.0]
[1674226177187,35.04,21.407,21.392,10.0]
[1674226177400,20.0,21.406,21.392,10.0]
[1674226177597,35.05,21.405,21.394,10.0]
[1674226177807,20.0,21.404,21.394,10.0]
[1674226178740,47.94919484,21.404,21.394,10.0]
[1674226181073,47.94919484,21.404,21.39,10.0]
[1674226181074,35.05,21.403,21.39,10.0]
[1674226181293,29.74,21.4,21.383,35.08]
[1674226181607,72.06,21.399,21.381,35.09]
[1674226181824,103.39586151,21.399,21.381,35.09]
[1674226182127,30.37586151,21.398,21.385,119.2848]
[1674226182338,72.06,21.397,21.385,119.2848]
[1674226182536,0.96,21.396,21.385,119.2848]
[1674226182744,35.06,21.395,21.385,119.2848]
[1674226183100,17.0,21.394,21.385,119.2848]
[1674226183284,56.03,21.393,21.385,119.2848]
[1674226183490,86.40586151,21.393,21.385,119.2848]
[1674226183810,30.37586151,21.392,21.385,119.2848]
[1674226184027,56.03,21.391,21.385,119.2848]
[1674226184332,55.07,21.391,21.385,119.2848]
[1674226184539,50.37586151,21.391,21.385,119.2848]
[1674226184950,30.37586151,21.391,21.385,119.2848]
[1674226185167,35.06,21.399,21.385,119.2848]
[1674226185490,30.37586151,21.398,21.386,9.93603006]
[1674226185683,35.06,21.397,21.386,9.93603006]
[1674226186116,30.37586151,21.397,21.387,17.0]
[1674226186332,30.37586151,21.397,21.388,10.0]
[1674226186545,30.37586151,21.397,21.389,52.07]
[1674226186744,30.37586151,21.397,21.389,17.0]
[1674226187471,30.37586151,21.397,21.388,10.0]
[1674226187679,0.96,21.396,21.388,10.0]
[1674226188851,0.96,21.396,21.386,9.93603006]
[1674226189063,66.39586151,21.396,21.386,9.93603006]
[1674226189490,31.33586151,21.396,21.386,9.93603006]
[1674226189895,31.33586151,21.396,21.385,129.2848]
[1674226190117,10.0,21.394,21.385,119.2848]
[1674226190320,55.07,21.393,21.385,119.2848]
[1674226190532,85.44586151,21.393,21.38,10.0]
[1674226190762,29.93,21.39,21.38,10.0]
[1674226190970,72.07,21.389,21.376,123.4297]
[1674226191157,103.40586151,21.389,21.376,10.0]
[1674226191488,30.37586151,21.388,21.366,10.0]
[1674226191698,35.08,21.387,21.367,35.11]
[1674226191917,0.96,21.386,21.367,35.11]
[1674226192236,29.93,21.38,21.367,35.11]
[1674226192545,20.0,21.379,21.367,35.11]
[1674226193369,0.96,21.378,21.367,35.11]
[1674226193579,0.96,21.378,21.366,45.11]
[1674226194203,36.05,21.378,21.366,10.0]
[1674226195480,36.05,21.378,21.367,17.0]
[1674226196098,0.96,21.378,21.367,17.0]
[1674226196839,0.96,21.378,21.368,10.0]
[1674226197568,48.33586151,21.378,21.364,10.0]
[1674226197781,29.93,21.37,21.364,10.0]
[1674226197987,20.0,21.369,21.364,10.0]
[1674226198202,20.0,21.369,21.363,10.0]
[1674226198427,0.96,21.368,21.363,10.0]
[1674226199353,29.93,21.38,21.363,10.0]
[1674226199559,20.0,21.379,21.364,35.11]
[1674226199797,20.0,21.381,21.364,35.11]
[1674226200002,20.0,21.381,21.365,17.0]
[1674226200204,30.37586151,21.386,21.365,17.0]